Cogmind - Beta 15 @@@ ROGUE MODE // 2025.09.19 @ 20:35:37 Player: Art Result: Destroyed by S-10 Pest with Light Assault Rifle Performance ------------- Evolutions (1) 500 Regions Visited (3) 600 Robots Destroyed (13) 65 Value Destroyed (391) 391 Prototype IDs (0) 0 Alien Tech Used (0) 0 Bonus (0) 0 TOTAL SCORE: 1556 Bonus ------- None Cogmind --------- Core Integrity 0/400 Matter 255/300 Energy 95/100 System Corruption 0% Temperature Cool (12) Movement Core (100) Ox1 Location -9/Materials Parts ------- > --- POWER (1) -------- (None) > --- PROPULSION (3) --- (None) > --- UTILITY (3) ------ (None) > --- WEAPON (2) ------- Hammer Flail > --- INVENTORY (5) ---- Heavy EM Pulse Gun Peak State ------------ > --- POWER ------------ Light Nuclear Core > --- PROPULSION ------- Light Treads Light Treads > --- UTILITY ---------- Improved Heat Sink Small Storage Unit > --- WEAPON ----------- Particle Gun Assault Rifle > --- INVENTORY -------- Ion Engine Light Ion Engine Heat Sink Light Assault Rifle Flail [Rating: 12] Favorites ----------- Power Light Nuclear Core Engine Light Ion Engine Power Core Light Nuclear Core Propulsion Aluminum Leg Treads Light Treads Leg Aluminum Leg Utility Improved Heat Sink Device Improved Heat Sink Storage Small Storage Unit Processor Targeting Computer Weapon Assault Rifle Energy Gun Particle Gun Ballistic Gun Assault Rifle Impact Weapon Hammer Build | -11 -10 -10 -9 ------- Run | Yrd Mat Min Mat Slots Evolved 2 | . . . 2 Power . | . . . . Propulsion 1 | . . . 1 Utility 1 | . . . 1 Weapon . | . . . . Parts Attached 22 | 6 7 5 4 Power 5 | 1 2 1 1 Engine 3 | 1 1 . 1 Core 2 | . 1 1 . Reactor . | . . . . Propulsion 4 | 2 . 2 . Treads 2 | 2 . . . Leg 2 | . . 2 . Wheel . | . . . . Hover . | . . . . Flight . | . . . . Utility 7 | 1 4 2 . Device 2 | . 2 . . Storage 3 | 1 1 1 . Processor 2 | . 1 1 . Hackware . | . . . . Protection . | . . . . Artifact . | . . . . Weapon 6 | 2 1 . 3 Energy Gun 2 | . 1 . 1 Energy Cannon . | . . . . Ballistic Gun 2 | 2 . . . Ballistic Cannon . | . . . . Launcher . | . . . . Special Weapon . | . . . . Impact Weapon 2 | . . . 2 Slashing Weapon . | . . . . Piercing Weapon . | . . . . Special Melee Weapon . | . . . . Unidentified Prototypes . | . . . . Parts Lost 7 | . . . 7 Power 1 | . . . 1 Propulsion 2 | . . . 2 Utility 2 | . . . 2 Weapon 2 | . . . 2 Highest Loss Streak 7 | . . . 7 To Critical Strikes . | . . . . Average Backups 3 | 1 3 3 3 Power 1 | . 1 1 . Propulsion . | . . . . Utility . | . . . . Weapon 1 | . 1 2 2 Tool/Special . | . . . . Unused Backups 2 | . 1 . 1 Power 1 | . 1 . . Propulsion . | . . . . Utility . | . . . . Weapon 1 | . . . 1 Tool/Special . | . . . . Average Slot Usage (%) 88 | . 94 88 72 Engine 4 | . 8 . 7 Core 9 | . 5 14 3 Treads 12 | . 27 3 . Leg 13 | . . 24 19 Device 10 | . 7 14 10 Storage 5 | . 11 1 . Processor 4 | . 5 1 10 Energy Gun 10 | . 5 14 10 Ballistic Gun 16 | . 21 14 10 Peak Build Rating 12 | 6 12 12 12 Average Rating 10 | 4 9 11 10 On Entrance 7 | . 6 11 12 Naked Turns . | . . . . Heaviest Build 91 | 11 91 31 13 Greatest Support 40 | 40 40 40 20 Greatest Overweight (x) 4 | 2 2 3 4 Average Overweight (x) . | . . . . Largest Inventory Capacity 25 | 8 25 25 5 Average Capacity 6 | 7 7 6 5 Most Carried 8 | 3 8 5 5 Average Carried 3 | . 3 3 3 Final Capacity 8 | 8 5 5 5 Final Carried 4 | 1 4 3 3 Class Distribution -------------------- 52% | Scavenger-Mutant 47% | Mutant Dominant Class ---------------- Mutant | -10/Materials Scavenger-Mutant | -10/Mines Scavenger-Mutant | -9/Materials Resources | -11 -10 -10 -9 ----------- Run | Yrd Mat Min Mat Matter Collected 558 | 251 163 144 . Remotely . | . . . . Salvage Created 422 | . 275 94 53 Parts 24 | . 19 4 1 Haulers Intercepted . | . . . . Recyclers Shooed . | . . . . Parts Field Recycled . | . . . . Retrieved Matter . | . . . . Parts Self-Destructed . | . . . . Prevented . | . . . . Kills | -11 -10 -10 -9 ------- Run | Yrd Mat Min Mat Combat Hostiles Destroyed 13 | . 8 3 2 Guns 11 | . 8 3 . Classes Destroyed 3 | . 2 1 . Swarmer 4 | . 3 . 1 Grunt 8 | . 5 2 1 Demolisher 1 | . . 1 . Best Kill Streak 3 | . 3 2 2 Combat Bots Only 3 | . 3 2 2 Max Kills in Single Turn 1 | . 1 1 1 Gunslinging . | . . . . Exploded . | . . . . Melee . | . . . . Uniques/NPCs Destroyed . | . . . . Combat | -11 -10 -10 -9 -------- Run | Yrd Mat Min Mat Hostile Shots Fired 139 | . 14 9 116 Missed 39 | . 2 3 34 Hits 100 | . 12 6 82 Projectile 100 | . 12 6 82 AOE 1 | . . 1 . Critical Strikes 1 | . . . 1 Damage Taken 1143 | . 131 98 914 Core 432 | . . 28 404 Absorbed by Shields . | . . . . Core Remaining (%) 94 | 100 . 88 . Volleys Fired 36 | . 16 10 10 Largest 2 | . 2 2 2 Hottest 85 | . 85 85 85 Shots Fired 69 | . 32 18 19 Gun 69 | . 32 18 19 Cannon . | . . . . Launcher . | . . . . Special . | . . . . Kinetic 48 | . 28 10 10 Thermal 21 | . 4 8 9 Explosive . | . . . . Electromagnetic . | . . . . Robot Hit Streak 10 | . 6 10 5 Robot Miss Streak 5 | . 1 5 2 Penetration Max . | . . . . Secondary Targets 1 | . . 1 . Max Gunslinging Chain 1 | . . 1 . Shots Hit Robots 47 | . 22 9 16 Core Hits 21 | . 13 5 3 Critical Kills . | . . . . Critical Parts Destroyed 2 | . . . 2 Critical Strikes 3 | . . 1 2 Burn 1 | . . 1 . Smash 2 | . . . 2 Melee Attacks 6 | . . . 6 Impact 6 | . . . 6 Slashing . | . . . . Piercing . | . . . . Sneak Attacks . | . . . . Combat Hostiles . | . . . . Follow-up Attacks 1 | . . . 1 Damage Inflicted 672 | . 274 125 273 Guns 572 | . 274 125 173 Cannons . | . . . . Explosions . | . . . . Melee 100 | . . . 100 Ramming . | . . . . Kinetic 392 | . 229 79 84 Thermal 180 | . 45 46 89 Explosive . | . . . . Electromagnetic . | . . . . Impact 100 | . . . 100 Slashing . | . . . . Piercing . | . . . . Highest Corruption 1 | . 1 1 . Average Corruption 1 | . 1 1 . Corruption Purged . | . . . . Corruption Blocked . | . . . . Effects 7 | . 1 6 . Message Errors 1 | . . 1 . Matter Fused 2 | . 1 1 . Heat Flow Errors 1 | . . 1 . Energy Discharges 1 | . . 1 . Data Loss (minor) 1 | . . 1 . Alerts 1 | . . 1 . Overload Shots . | . . . . Overflow Damage 60 | . . . 60 Projectiles . | . . . . Explosions . | . . . . Melee 60 | . . . 60 Knockbacks 1 | . . . 1 Impact 1 | . . . 1 Kinetic . | . . . . Secondary . | . . . . Self-Inflicted Damage . | . . . . Shots . | . . . . Rammed . | . . . . Targets Rammed . | . . . . Kicked . | . . . . Crushed . | . . . . Highest Temperature 213 | . 6 213 6 Average Temperature 34 | . 3 55 2 Received Heat Transfer 510 | . 60 42 408 Siege Activations . | . . . . Martial Activations . | . . . . Shielding Activations . | . . . . Robots Disrupted . | . . . . Combat Hostiles . | . . . . Robots Corrupted 2 | . . . 2 Combat Hostiles 2 | . . . 2 Parts Fried 1 | . . . 1 Impact Corruptions 4 | . . . 4 Robots Melted . | . . . . Combat Hostiles . | . . . . Parts Melted . | . . . . Heat Transferred 518 | . 111 185 222 Parts Sabotaged . | . . . . Parts Stolen . | . . . . Parts Stripped . | . . . . Power Chain Reactions . | . . . . Alert | -11 -10 -10 -9 ------- Run | Yrd Mat Min Mat Maximum Alert Level . | . . . . Low Security (%) 100 | 100 100 100 100 Level 1 . | . . . . Level 2 . | . . . . Level 3 . | . . . . Level 4 . | . . . . Level 5 . | . . . . High Security . | . . . . Max Security . | . . . . Peak Influence 100 | . 100 40 50 Initial . | . . . . Average 14 | . 33 3 2 Influence Increases 393 | . 228 80 85 Destroy 0b10 Robot/C 260 | . 160 60 40 Destroy Leader 70 | . 40 20 10 Successful Hack 17 | . 12 . 5 Destroy Structure 1 | . 1 . . Lose Combat Pursuer 45 | . 15 . 30 Influence Decreases 343 | . 228 80 35 Time Decay 323 | . 228 80 15 Lost Part 20 | . . . 20 Squads Dispatched 4 | . 3 . 1 Investigation 1 | . 1 . . Extermination . | . . . . Reinforcement 3 | . 2 . 1 Assault . | . . . . Garrison . | . . . . Intercept . | . . . . Searches Triggered . | . . . . Construction Impeded . | . . . . Haulers Reinforced . | . . . . Active Scanning Responses . | . . . . Cargo Convoy Interrupts . | . . . . Stealth | -11 -10 -10 -9 --------- Run | Yrd Mat Min Mat Distress Signals 3 | . 2 . 1 Communications Jammed . | . . . . Distress Signals . | . . . . Times Spotted 32 | . 14 3 15 Peak Tracking Total 12 | . 6 2 12 Tactical Retreats 2 | . 1 . 1 Traps | -11 -10 -10 -9 ------- Run | Yrd Mat Min Mat Traps Triggered 3 | . 3 . . Indirectly . | . . . . Trap Hack Attempts . | . . . . Triggered . | . . . . Disarmed . | . . . . Reprogrammed . | . . . . Reused . | . . . . Traps Extracted . | . . . . Installed . | . . . . Triggered . | . . . . Machines | -11 -10 -10 -9 ---------- Run | Yrd Mat Min Mat Machines Disabled . | . . . . Max in Single Turn . | . . . . Machines Repaired . | . . . . Machines Dismantled . | . . . . Machines Sabotaged . | . . . . Overloaded Fab Kills . | . . . . Hacking | -11 -10 -10 -9 --------- Run | Yrd Mat Min Mat Machines Accessed 9 | . 6 . 3 Terminals 6 | . 4 . 2 Fabricators . | . . . . Repair Stations . | . . . . Recycling Units 3 | . 2 . 1 Scanalyzers . | . . . . Garrison Access . | . . . . Total Hacks 22 | . 16 . 6 Successful 11 | . 8 . 3 Failed 11 | . 8 . 3 Catastrophic 1 | . 1 . . Database Lockouts . | . . . . Manual . | . . . . Terminals 13 | . 9 . 4 Fabricators . | . . . . Repair Stations . | . . . . Recycling Units 9 | . 7 . 2 Scanalyzers . | . . . . Garrison Access . | . . . . Terminal Hacks 8 | . 5 . 3 Record 2 | . 1 . 1 Alert Level 2 | . 2 . . Locate Traps 2 | . 2 . . Dispatch Records 1 | . . . 1 Hauler Manifests 1 | . . . 1 Fabricator Hacks . | . . . . Repair Station Hacks . | . . . . Recycling Unit Hacks 3 | . 3 . . Process 1 | . 1 . . Report Inventory 2 | . 2 . . Scanalyzer . | . . . . Garrison Access Hacks . | . . . . Unauthorized Hacks . | . . . . Terminals . | . . . . Fabricators . | . . . . Repair Stations . | . . . . Recycling Units . | . . . . Scanalyzers . | . . . . Garrison Access . | . . . . Data Cores Recovered . | . . . . Used . | . . . . Hacking Detections 7 | . 6 . 1 Full Trace Events 1 | . 1 . . Feedback Events . | . . . . Feedback Blocked . | . . . . Robot Schematics Acquired . | . . . . Robots Built . | . . . . Authchips . | . . . . Time . | . . . . Total Robot Build Rating . | . . . . Part Schematics Acquired . | . . . . Parts Built . | . . . . Authchips . | . . . . Time . | . . . . Total Part Build Rating . | . . . . Parts Repaired . | . . . . Time . | . . . . Parts Recycled . | . . . . Recycled Matter 76 | . 76 . . Retrieved Matter . | . . . . Retrieved Components . | . . . . Parts Scanalyzed . | . . . . Part Schematics Acquired . | . . . . Parts Damaged . | . . . . Bothacking | -11 -10 -10 -9 ------------ Run | Yrd Mat Min Mat Used RIF Installer . | . . . . Robots Hacked . | . . . . Non-combat . | . . . . Combat . | . . . . Robot Hacks Applied . | . . . . Relay Couplers Released . | . . . . Fabnet Peak Effective % . | . . . . Robots Rewired . | . . . . Allies Hacked . | . . . . Hacks Repelled . | . . . . Allies | -11 -10 -10 -9 -------- Run | Yrd Mat Min Mat Total Allies . | . . . . Largest Group . | . . . . Highest-Rated Group . | . . . . Highest-Rated Ally . | . . . . Total Orders . | . . . . Ally Attacks . | . . . . Total Damage . | . . . . Kills . | . . . . Allies Corrupted . | . . . . Allies Melted . | . . . . Intel | -11 -10 -10 -9 ------- Run | Yrd Mat Min Mat Active Infowar (turns) . | . . . . Robot Analysis Total . | . . . . Derelict Logs Recovered 3 | . . 3 . Drone Launches . | . . . . Drone Recoveries . | . . . . Exploration | -11 -10 -10 -9 ------------- Run | Yrd Mat Min Mat Turns Passed 1655 | 65 625 739 226 Spaces Moved 1009 | 44 326 494 145 Core 86 | 17 7 58 4 Treads 395 | 27 319 49 . Legs 528 | . . 387 141 Wheels . | . . . . Hover . | . . . . Flight . | . . . . Fastest Speed 50 | 50 100 120 100 Average Speed 143 | 119 161 140 121 Slowest Speed 320 | 160 320 200 250 Overloaded Moves . | . . . . Propulsion Burnouts . | . . . . Robots Hopped . | . . . . Potential Cave-ins . | . . . . Cave-ins Triggered . | . . . . Exploration Rate (%) 38 | 4 54 80 16 Regions Visited 3 Branch Regions 1 Pre-discovered Areas 1 | . . 1 . Known Exits Taken . | . . . . Unknown Exits Taken 3 | 1 1 1 . Scrap Searched 1 | . . 1 . Spaces Dug . | . . . . Terrain Destroyed . | . . . . Melee . | . . . . Projectile . | . . . . AOE . | . . . . Terrain Rammed . | . . . . Walls Destroyed . | . . . . Machines Disabled . | . . . . Actions | -11 -10 -10 -9 --------- Run | Yrd Mat Min Mat Total 1150 | 56 400 522 172 Wait 26 | . 26 . . Move 1006 | 43 325 493 145 Hop . | . . . . Pick Up 28 | 7 13 5 3 Fast Attach . | . . . . Attach 30 | 6 12 7 5 Detach 8 | . 5 2 1 Swap . | . . . . Drop 11 | . 3 5 3 Fire 36 | . 16 10 10 Melee 5 | . . . 5 Ram . | . . . . Kick . | . . . . Crush . | . . . . Escape Stasis . | . . . . Rewire . | . . . . Trap . | . . . . Miscellaneous . | . . . . Route ------- -11/Scrapyard -10/Materials -10/Mines -9/Materials History --------- Turn | Location | Event 7 | -11/Scrapyard | Discovered new exit (range 15) 66 | -11/Scrapyard | Entered Materials 67 | -10/Materials | Met a group of wandering Federalists 308 | -10/Materials | Build established: Mutant 499 | -10/Materials | Discovered new exit (range 13) 691 | -10/Materials | Entered Mines 837 | -10/Mines | Assembled infested the area 842 | -10/Mines | Assisted by a Guerilla fighting off Assembled 926 | -10/Mines | Discovered new exit (range 5) 1082 | -10/Mines | Learned Materials trap positions 1087 | -10/Mines | Build established: Scavenger-Mutant 1174 | -10/Mines | Learned location of Zion (-7) 1430 | -10/Mines | Entered Materials 1430 | -9/Materials | Evolved 2 slots: Propulsion x1, Utility x1 1431 | -9/Materials | Loaded intel: 11 trap records 1649 | -9/Materials | Core integrity fell below 50% 1655 | -9/Materials | Core integrity fell below 20% 1656 | -9/Materials | Destroyed by S-10 Pest with Light Assault Rifle Last Messages --------------- 01645_ S-10 Pest suffers critical hit (Burn). 01645_ Imp. Heat Sink destroyed. 01646_ G-34 Mercenary suffers critical hit (Smash). 01646_ Destroyed Aluminum Leg. 01646_ G-34 Mercenary system corrupted by crushing effect. 01646_ G-34 Mercenary knocked back. 01647_ G-34 Mercenary system terminally corrupted. [Achievement: Power Corrupts] 01647_ Heat Sink fried. 01647_ S-10 Pest destroyed. 01652_ Hammer follow-up attack on S-10 Pest. 01652_ S-10 Pest suffers critical hit (Smash). 01652_ Destroyed Flight Unit. 01652_ S-10 Pest system corrupted by crushing effect. 01653_ S-10 Pest system terminally corrupted. 01655_ G-34 Mercenary destroyed. Map ----- +----------------------------------------------------+ | #???####+### #??# #??????????????????^??? | | #????# ##+######## #?????????????????????? | | ###### # #?????????????????????? | | T + #?????????????????????? | | ####### # #?????????????????????? | | ??????# ##+###### # #?????????????????????? | | ??????####### ## # #?????????????????????? | | ????????????# ** ## ######?????????????????????? | | ????????????# ## #??????????????????????????? | | ????????????# ## #??????????????????????????? | | ????????????# ## #??????????????????????????? | | ????????????# ## #??????????????????????????? | | ????????????######### #??????????????????????????? | | ?????????????########+##?????????????????????????? | | ????????###### #?????????????????????????? | | ????????# + """ #?????????????????????????? | | ????????# #### [ """""#?????????????????????????? | | ????????# #??# """""#?????????????????????????? | | ????????# #??# | """""#????????^????????????????? | | ????????# #??# """ #?????????????????????????? | | ????#######??# #?????????????????????????? | | ????# ????# #?????????????????????????? | | ????# T ?#######+##########????????????????????? | | ????# # + #????????????????????? | | ????# # # "T"gYg#????????????????????? | | ????# + """ # =%g@ #????????????????????? | | ????# # Y" # %=s ##???????????????????? | | ????#####?## """ #[ gsss% #???????????????????? | | ??????????# ###/######???????????????????? | | ??????????# #???????????????????? | | ??????????# #???????????????????? | | ??????????# / ???????????????? | | ??????????# #T######## # ???????????????? | | ??????????#########??????? #???????????????????? | | ??????????????????????????? #??????????????????? | | ??????????????????????????? ????????????????????? | | ?????????????????????????????????????????????????? | | ?????????????????????????????????????????????????? | | ?????????????????????????????????????????????????? | | ?????????????????????????????????????????????????? | | ?????????????????????????????????????????????????? | | ?????????????????????????????????????????????????? | | ?????????????????????????????????????????????????? | | ?????????????????????????????????????????????????? | | ?????????????????????????????????????????????????? | | ?????????????????????????????????????????????????? | | ?????????????????????????????????????????????????? | | ?????????????????????????????????????????????????? | | ?????????????????????????????????????????????????? | | ?????????????????????????????????????????????????? | +----------------------------------------------------+ Best States ------------- Heat Dissipation 42 Energy Generation 14 Energy Capacity 265 Matter Stores 300 Matter Capacity 300 Sight Range 16 Terrain Scan Density 10 Evasion (%) 55 Targeting Accuracy 6 Recoil Reduction 2 Item Schematics ----------------- None Robot Schematics ------------------ None Fabricated ------------ Nothing Repaired ---------- Nothing Alien Tech Used ----------------- None Achievements -------------- Power Corrupts Challenges ------------ None Game ------ Seed AccelerationMeleeMediator Manual? 0 Play Time 00:30:38 Cumulative 2.3 hours Start 2025.09.19 @ 20:06:19 End 2025.09.19 @ 20:35:37 Sessions 1 Manual Loads 0 Difficulty Rogue Special Mode None Game No. 8 Rogue 8 Adventurer 0 Explorer 0 Win Type - Total 0 Types 0/0/0/0/0/0/0/0/0/0 Lore% 1 Gallery% 7 Achievement% 6 Wizard Run 0 Options --------- Layout 1 ASCII 0 Keyboard 0 Movement Numpad Keybinds 0 Fullscreen 1 Font 32/SmallcapsGlow Map View 50x35 Zoom Use 0% Tactical HUD 1 Map Filters NONE Filters NONE Steam 1 RUN: 1fbb5ce9-3d23-4f38-a1fc-c05fd1892e5d